Cogmind - Beta 12 @@@ ROGUE MODE // 2023.09.24 @ 20:23:46 Player: monistgf Result: Smashed by cave-in Performance ------------- Evolutions (5) 2500 Regions Visited (13) 2600 Robots Destroyed (170) 850 Value Destroyed (8810) 8810 Prototype IDs (4) 80 Alien Tech Used (0) 0 Bonus (3980) 3980 TOTAL SCORE: 18820 Bonus ------- High Alert Combat Kills 562 Follower Combat Kills 1424 Entered Garrisons 400 Used RIF Installer 1500 Aligned with FarCom 300 Friendly Fire -206 Cogmind --------- Core Integrity 0/1000 Matter 135/550 Energy 14/100 System Corruption 9% Temperature Cool (15) Movement Core (1750) Ox34 Location -5/Factory Parts ------- > --- POWER (2) -------- (None) > --- PROPULSION (8) --- (None) > --- UTILITY (5) ------ Huge Storage Unit Matter Compressor Advanced Targeting Computer > --- WEAPON (2) ------- Long-range Proton Cannon Enhanced Gauss Cannon > --- INVENTORY (25) --- High-capacity Storage Unit Improved Signal Interpreter Relay Coupler [NC] (42) Relay Coupler [Swarmer] (43) Relay Coupler [Cutter] (23) Relay Coupler [Hunter] (19) Improved Arc Projector Long-range Proton Cannon Long-range Proton Cannon Autogun Gauss Rifle Gauss Rifle KE Penetrator Mass Driver Lance Peak State ------------ > --- POWER ------------ Light Nuclear Core Neutrino Core > --- PROPULSION ------- Heavy Treads Carbon-fiber Leg Carbon-fiber Leg Carbon-fiber Leg Carbon-fiber Leg Carbon-fiber Leg Carbon-fiber Leg > --- UTILITY ---------- Advanced Heat Sink Improved Cooling System Huge Storage Unit Advanced Targeting Computer Relay Coupler [Specialist] > --- WEAPON ----------- Advanced Plasma Cannon KE Penetrator > --- INVENTORY -------- Light Nuclear Core Improved Treads Improved Heat Sink High-capacity Storage Unit Matter Compressor Improved Signal Interpreter Improved Transmission Jammer Relay Coupler [NC] Relay Coupler [Swarmer] Relay Coupler [Cutter] Relay Coupler [Hunter] Long-range Tractor Beam Improved Arc Projector Long-range Proton Cannon Long-range Proton Cannon Long-range Proton Cannon Heavy Plasma Cannon Heavy Assault Rifle Autogun Gauss Rifle Gauss Rifle Mass Driver Enhanced Gauss Cannon Heavy Missile Launcher Lance [Rating: 79] Favorites ----------- Power Heavy Ion Engine Engine Heavy Ion Engine Power Core Neutrino Core Reactor Particle Reactor Propulsion Improved Carbon-fiber Leg Treads Light Treads Leg Improved Carbon-fiber Leg Wheel Compact Wheel Utility Huge Storage Unit Device Improved Heat Sink Storage Huge Storage Unit Processor Advanced Targeting Computer Hackware Relay Coupler [Grunt] Protection Hardened Heavy Armor Plating Weapon KE Penetrator Energy Gun Medium Laser Energy Cannon Advanced Plasma Cannon Ballistic Gun KE Penetrator Ballistic Cannon Light Cannon Launcher Grenade Launcher Special Weapon Improved Remote Datajack Slashing Weapon Axe Piercing Weapon Lance Build | -11 -10 -10 -10 -9 -8 -8 -8 -8 -7 -7 -7 -6 -5 ------- Run | Jun Mat Min Exi Min Mat Gar Mat Sto Fac Gar Fac Fac Fac Slots Evolved 10 | . . . . . 4 . . . 2 . . 2 2 Power 1 | . . . . . . . . . . . . 1 . Propulsion 6 | . . . . . 2 . . . 2 . . 1 1 Utility 3 | . . . . . 2 . . . . . . . 1 Weapon . | . . . . . . . . . . . . . . Parts Attached 306 | 7 7 7 . . 7 34 26 34 10 41 22 20 91 Power 25 | 1 . 2 . . 1 1 2 2 . 1 2 3 10 Engine 18 | 1 . 2 . . 1 1 2 2 . 1 . 3 5 Core 5 | . . . . . . . . . . . . . 5 Reactor 2 | . . . . . . . . . . . 2 . . Propulsion 81 | 2 2 2 . . 2 11 6 10 5 5 5 5 26 Treads 10 | . . . . . . 6 1 . . . . . 3 Leg 66 | 2 2 2 . . 2 5 5 10 5 5 5 5 18 Wheel 5 | . . . . . . . . . . . . . 5 Hover . | . . . . . . . . . . . . . . Flight . | . . . . . . . . . . . . . . Utility 61 | 1 4 . . . 3 4 7 4 2 9 4 4 19 Device 18 | . 1 . . . 1 . 3 1 1 3 . 1 7 Storage 9 | 1 1 . . . . 1 1 . 1 2 . . 2 Processor 5 | . . . . . 1 . 1 . . . 2 1 . Hackware 14 | . . . . . . 1 2 1 . 3 1 . 6 Protection 15 | . 2 . . . 1 2 . 2 . 1 1 2 4 Artifact . | . . . . . . . . . . . . . . Weapon 139 | 3 1 3 . . 1 18 11 18 3 26 11 8 36 Energy Gun 1 | 1 . . . . . . . . . . . . . Energy Cannon 6 | . . . . . . . . . . . . . 6 Ballistic Gun 43 | 2 . 1 . . 1 5 4 7 2 6 5 5 5 Ballistic Cannon 26 | . 1 1 . . . 6 2 1 . 4 1 1 9 Launcher 13 | . . 1 . . . 7 1 . . 2 . . 2 Special Weapon 17 | . . . . . . . 3 3 . 4 2 . 5 Impact Weapon . | . . . . . . . . . . . . . . Slashing Weapon 31 | . . . . . . . 1 7 1 10 3 2 7 Piercing Weapon 2 | . . . . . . . . . . . . . 2 Special Melee Weapon . | . . . . . . . . . . . . . . Unidentified Prototypes 2 | . . . . . . . . 2 . . . . . Parts Lost 75 | . . 1 . . . 5 . 3 . 5 2 6 53 Power 13 | . . 1 . . . . . . . 1 . 1 10 Propulsion 39 | . . . . . . 2 . 1 . 2 2 2 30 Utility 13 | . . . . . . 1 . 2 . 1 . 1 8 Weapon 10 | . . . . . . 2 . . . 1 . 2 5 Highest Loss Streak 13 | . . 1 . . . 2 . 1 . 2 1 4 13 To Critical Strikes . | . . . . . . . . . . . . . . Average Slot Usage (%) 93 | . 94 99 100 100 100 94 85 89 91 93 99 98 90 Engine 8 | . 14 13 14 14 9 9 9 9 7 6 . 7 7 Treads 2 | . . . . . . 10 13 . . . . . 2 Leg 34 | . 28 28 28 28 36 21 17 35 45 45 45 45 33 Device 2 | . . . . . 9 2 1 2 7 4 5 1 1 Storage 8 | . 14 14 14 14 9 9 9 9 7 7 7 6 5 Processor 3 | . . . . . 9 9 2 . . . 4 7 7 Hackware 4 | . . . . . . 5 5 6 . 3 3 4 9 Protection 7 | . 8 14 14 14 9 9 9 9 7 7 6 5 2 Ballistic Gun 9 | . 18 13 14 14 9 8 14 11 8 5 13 10 2 Ballistic Cannon 4 | . 9 14 14 14 9 8 3 1 . . . 1 3 Slashing Weapon 2 | . . . . . . . . 4 5 5 1 . 1 Naked Turns . | . . . . . . . . . . . . . . Heaviest Build 134 | 14 35 36 35 35 39 83 116 122 82 122 119 125 134 Greatest Support 133 | 20 20 20 20 20 40 110 110 72 110 110 109 121 133 Greatest Overweight (x) 7 | 4 1 1 1 1 . 1 1 3 . 1 1 1 7 Average Overweight (x) . | . . 1 1 1 . . . 1 . . . . . Largest Inventory Capacity 25 | 8 15 15 15 15 15 20 25 25 25 25 25 25 25 Average Capacity 21 | 7 10 15 15 15 15 17 21 25 20 24 25 25 25 Most Carried 25 | 3 9 13 14 15 15 20 25 25 24 25 25 25 25 Average Carried 20 | 1 7 11 12 14 12 17 21 24 20 24 24 24 22 Final Capacity 25 | 8 15 15 15 15 15 20 25 25 20 25 25 25 25 Final Carried 25 | 3 9 12 14 15 15 20 25 25 20 25 25 22 15 Class Distribution -------------------- 63% | Bothacker-Mutant 25% | Mutant 10% | Scavenger-Mutant Dominant Class ---------------- Mutant | -10/Materials Mutant | -10/Mines Mutant | -10/Exiles Mutant | -9/Mines Scavenger-Mutant | -8/Materials Scavenger-Mutant | -8/Garrison Bothacker-Mutant | -8/Materials Bothacker-Mutant | -8/Storage Mutant | -7/Factory Bothacker-Mutant | -7/Garrison Bothacker-Mutant | -7/Factory Bothacker-Mutant | -6/Factory Bothacker-Mutant | -5/Factory Resources | -11 -10 -10 -10 -9 -8 -8 -8 -8 -7 -7 -7 -6 -5 ----------- Run | Jun Mat Min Exi Min Mat Gar Mat Sto Fac Gar Fac Fac Fac Matter Collected 8050 | 206 446 169 . . 105 1108 911 980 182 1014 412 787 1730 Remotely 109 | . . . . . . . . . . . . . 109 Salvage Created 6707 | . 173 189 . . 133 666 941 1416 18 506 364 588 1713 Parts 339 | . 8 15 . . 7 35 63 63 2 27 24 31 64 Haulers Intercepted 7 | . 1 . . . 1 . 3 2 . . . . . Recyclers Shooed 4 | . . . . . . . 1 . . . . 2 1 Parts Field Recycled . | . . . . . . . . . . . . . . Retrieved Matter . | . . . . . . . . . . . . . . Parts Self-Destructed . | . . . . . . . . . . . . . . Prevented . | . . . . . . . . . . . . . . Kills | -11 -10 -10 -10 -9 -8 -8 -8 -8 -7 -7 -7 -6 -5 ------- Run | Jun Mat Min Exi Min Mat Gar Mat Sto Fac Gar Fac Fac Fac Combat Hostiles Destroyed 145 | . 3 7 . . 1 24 14 23 . 14 7 11 41 Melee 2 | . . . . . . . . . . 2 . . . Guns 63 | . 2 1 . . 1 3 9 20 . 2 5 8 12 Cannons 51 | . 1 3 . . . 12 3 3 . 3 2 3 21 AOE 28 | . . 3 . . . 9 2 . . 7 . . 7 Classes Destroyed 16 | . 2 2 . . 2 3 3 . . 2 . . 2 Worker 4 | . . 1 . . . . 1 1 . . . 1 . Builder 6 | . . . . . . . 3 2 . . . . 1 Hauler 7 | . 1 . . . 1 . 3 2 . . . . . Recycler 3 | . . . . . . . 1 1 . . . 1 . Operator 3 | . . . . . 2 . . . 1 . . . . Watcher 5 | . . . . . . . 2 1 . . 1 . 1 Swarmer 28 | . . 3 . . . 6 2 . . 7 1 4 5 Grunt 68 | . 3 4 . . . 12 5 17 . 4 3 4 16 Brawler 1 | . . . . . . 1 . . . . . . . Duelist 3 | . . . . . . 1 1 . . . . . 1 Sentry 21 | . . . . . 1 3 6 5 . . 1 1 4 Specialist 3 | . . . . . . . . . . 1 . . 2 Hunter 4 | . . . . . . 1 . 1 . . . . 2 Programmer 13 | . . . . . . . . . . 2 2 2 7 Heavy 1 | . . . . . . . . . . . . . 1 Assembled 3 | . . . . . . . . . . . . . 3 Best Kill Streak 6 | . 1 4 . . 1 6 4 6 1 4 3 6 6 Combat Bots Only 6 | . 1 3 . . 1 6 2 6 . 4 3 5 6 Max Kills in Single Turn 4 | . 1 2 . . 1 3 2 2 1 2 1 1 4 Gunslinging 1 | . . . . . . . . 1 . . . . . Exploded 4 | . . 2 . . . 3 1 . . 2 . . 4 Melee 1 | . . . . . . . . . . 1 . . . Uniques/NPCs Destroyed . | . . . . . . . . . . . . . . Combat | -11 -10 -10 -10 -9 -8 -8 -8 -8 -7 -7 -7 -6 -5 -------- Run | Jun Mat Min Exi Min Mat Gar Mat Sto Fac Gar Fac Fac Fac Damage Taken 16149 | . 229 349 . . 30 1141 998 1669 . 1827 514 1022 8370 Core 1726 | . 41 72 . . . 148 102 94 . 84 65 103 1017 Absorbed by Shields . | . . . . . . . . . . . . . . Reduced by Siege Mode 97 | . . . . . . . . . . . . . 97 Regen/Repaired (Parts) 50 | . . . . . . . . 7 . . 43 . . Core Remaining (%) 71 | 100 . . . 54 . . . 37 . . 78 87 . Volleys Fired 559 | . 18 23 . . 5 101 67 85 . 59 25 31 145 Largest 2 | . 2 2 . . 2 2 2 2 . 2 2 2 2 Hottest 188 | . 55 55 . . 58 85 90 85 . 76 83 81 188 Shots Fired 1003 | . 36 28 . . 10 187 117 165 . 90 47 63 260 Gun 560 | . 32 20 . . 5 85 72 133 . 36 39 52 86 Cannon 359 | . 4 5 . . 5 88 37 27 . 29 6 11 147 Launcher 35 | . . 3 . . . 14 2 . . 7 . . 9 Special 49 | . . . . . . . 6 5 . 18 2 . 18 Kinetic 867 | . 36 25 . . 10 173 109 160 . 65 45 63 181 Thermal 43 | . . . . . . . . . . . . . 43 Explosive 35 | . . 3 . . . 14 2 . . 7 . . 9 Electromagnetic 9 | . . . . . . . . . . . . . 9 Robot Hit Streak 52 | . 11 12 . . 9 25 16 8 . 18 6 20 52 Robot Miss Streak 4 | . 2 1 . . . 4 4 4 . 3 3 3 4 Penetration Max 1 | . . . . . . . 1 1 . . . 1 1 Secondary Targets 1 | . . . . . . . . 1 . . . . . Max Gunslinging Chain 1 | . . . . . . . . 1 . . . . . Shots Hit Robots 674 | . 28 22 . . 6 96 69 101 1 75 30 45 201 Core Hits 311 | . 8 12 . . 5 56 30 53 . 28 13 21 85 Critical Kills 14 | . . . . . . 1 3 7 . . 1 2 . Critical Parts Destroyed 18 | . . . . . . 3 6 8 . . . . 1 Critical Strikes 47 | . . . . . . 8 9 15 . 3 1 3 8 Destroy 32 | . . . . . . 4 9 15 . . 1 2 1 Blast 14 | . . . . . . 4 . . . 2 . 1 7 Sever 1 | . . . . . . . . . . 1 . . . Melee Attacks 108 | . . . . . . . 1 26 8 43 4 2 24 Impact . | . . . . . . . . . . . . . . Slashing 105 | . . . . . . . 1 26 8 43 4 2 21 Piercing 3 | . . . . . . . . . . . . . 3 Sneak Attacks 8 | . . . . . . . . 1 1 5 . . 1 Combat Hostiles 2 | . . . . . . . . . . 2 . . . Follow-up Attacks . | . . . . . . . . . . . . . . Damage Inflicted 18191 | . 349 488 . . 90 2220 1699 2412 90 2397 700 1186 6560 Guns 7942 | . 297 211 . . 74 698 1033 1946 . 534 612 986 1551 Cannons 6684 | . 52 70 . . 16 863 453 353 . 597 88 180 4012 Explosions 2446 | . . 165 . . . 659 198 . . 503 . . 921 Melee 1020 | . . . . . . . . 110 90 763 . . 57 Ramming 99 | . . 42 . . . . 15 3 . . . 20 19 Kinetic 13091 | . 349 281 . . 90 1561 1486 2299 . 1131 700 1166 4028 Thermal 1406 | . . . . . . . . . . . . . 1406 Explosive 2446 | . . 165 . . . 659 198 . . 503 . . 921 Electromagnetic 129 | . . . . . . . . . . . . . 129 Impact . | . . . . . . . . . . . . . . Slashing 1020 | . . . . . . . . 110 90 763 . . 57 Piercing . | . . . . . . . . . . . . . . Highest Corruption 12 | . . . . . . . . . . 12 12 3 8 Average Corruption 8 | . . . . . . . . . . 11 12 2 4 Corruption Purged . | . . . . . . . . . . . . . . Corruption Blocked . | . . . . . . . . . . . . . . Effects 182 | . . . . . . . . . . 64 62 10 46 Message Errors 42 | . . . . . . . . . . 12 16 4 10 Matter Fused 32 | . . . . . . . . . . 9 10 2 11 Heat Flow Errors 32 | . . . . . . . . . . 13 12 1 6 Energy Discharges 32 | . . . . . . . . . . 12 12 . 8 Parts Rejected 3 | . . . . . . . . . . 2 . . 1 Parts Fused 1 | . . . . . . . . . . . . . 1 Data Loss (minor) 24 | . . . . . . . . . . 13 8 1 2 Data Loss (major) 11 | . . . . . . . . . . 2 3 1 5 Misfires 3 | . . . . . . . . . . . 1 1 1 Alerts 1 | . . . . . . . . . . 1 . . . Weapon Failures 1 | . . . . . . . . . . . . . 1 Overload Shots . | . . . . . . . . . . . . . . Overflow Damage 523 | . . 15 . . . 14 19 7 60 141 . . 267 Projectiles 211 | . . . . . . 10 . 3 . 27 . . 171 Explosions 111 | . . 15 . . . 4 19 . . 4 . . 69 Melee 201 | . . . . . . . . 4 60 110 . . 27 Knockbacks 51 | . . 2 . . . 11 4 7 . 1 . 4 22 Impact 1 | . . 1 . . . . . . . . . . . Kinetic 45 | . . 1 . . . 10 3 6 . 1 . 3 21 Secondary 5 | . . . . . . 1 1 1 . . . 1 1 Self-Inflicted Damage 144 | . . 36 . . . 65 15 . . 24 . . 4 Shots 5 | . . 1 . . . 2 1 . . 1 . . . Rammed 1 | . . . . . . . . . . . . . 1 Targets Rammed 14 | . . 7 . . . . 2 1 . . . 2 2 Kicked 13 | . . 7 . . . . 2 1 . . . 2 1 Crushed . | . . . . . . . . . . . . . . Highest Temperature 486 | . 11 93 . . . 183 486 234 . 297 252 248 307 Average Temperature 91 | . 4 31 . . . 47 137 70 . 101 96 79 94 Received Heat Transfer 4249 | . 129 165 . . 9 567 531 909 . 141 114 291 1393 Effects 15 | . . . . . . . 13 . . . . . 2 Shutdowns 2 | . . . . . . . 2 . . . . . . Energy Bleed 3 | . . . . . . . 2 . . . . . 1 Interference 8 | . . . . . . . 7 . . . . . 1 Matter Decay 1 | . . . . . . . 1 . . . . . . Short Circuit 1 | . . . . . . . 1 . . . . . . Siege Activations 3 | . . . . . . . . . . . . . 3 Total Turns 82 | . . . . . . . . . . . . . 82 Longest Duration 59 | . . . . . . . . . . . . . 59 Robots Corrupted . | . . . . . . . . . . . . . . Combat Hostiles . | . . . . . . . . . . . . . . Parts Fried . | . . . . . . . . . . . . . . Impact Corruptions . | . . . . . . . . . . . . . . Robots Melted 1 | . . . . . . . . . . . . . 1 Combat Hostiles 1 | . . . . . . . . . . . . . 1 Parts Melted 7 | . . . . . . 1 . . . . . . 6 Heat Transferred 2050 | . . . . . . . . . . . . . 2050 Parts Sabotaged . | . . . . . . . . . . . . . . Parts Stolen . | . . . . . . . . . . . . . . Parts Stripped . | . . . . . . . . . . . . . . Power Chain Reactions . | . . . . . . . . . . . . . . Missiles Intercepted . | . . . . . . . . . . . . . . Alert | -11 -10 -10 -10 -9 -8 -8 -8 -8 -7 -7 -7 -6 -5 ------- Run | Jun Mat Min Exi Min Mat Gar Mat Sto Fac Gar Fac Fac Fac Peak Influence 1905 | . 93 196 . . 84 1905 1159 374 197 1022 550 105 316 Initial 928 | . . 7 . . . 54 928 247 163 . 536 25 . Average 279 | . 32 29 . . 31 799 829 109 114 501 211 33 50 Maximum Alert Level 5 | . . . . . . 5 4 1 . 3 2 . 1 Low Security (%) 61 | 100 100 100 . 100 100 1 . 73 100 22 54 100 97 Level 1 15 | . . . . . . 32 . 26 . 24 22 . 2 Level 2 9 | . . . . . . 15 49 . . 18 22 . . Level 3 10 | . . . . . . 26 43 . . 34 . . . Level 4 1 | . . . . . . 10 6 . . . . . . Level 5 2 | . . . . . . 13 . . . . . . . High Security . | . . . . . . . . . . . . . . Max Security . | . . . . . . . . . . . . . . Squads Dispatched 33 | . 2 . . . . . 2 8 1 . 3 2 15 Investigation 6 | . 1 . . . . . . 4 . . 1 . . Extermination 7 | . . . . . . . . . . . 1 2 4 Reinforcement 12 | . 1 . . . . . 1 2 1 . 1 . 6 Assault 3 | . . . . . . . 1 2 . . . . . Garrison 5 | . . . . . . . . . . . . . 5 Intercept . | . . . . . . . . . . . . . . Searches Triggered . | . . . . . . . . . . . . . . Construction Impeded 2 | . . . . . . . . 1 . . . . 1 Haulers Reinforced 2 | . . . . . . . . . . . 1 . 1 Active Scanning Responses . | . . . . . . . . . . . . . . Cargo Convoy Interrupts . | . . . . . . . . . . . . . . Stealth | -11 -10 -10 -10 -9 -8 -8 -8 -8 -7 -7 -7 -6 -5 --------- Run | Jun Mat Min Exi Min Mat Gar Mat Sto Fac Gar Fac Fac Fac Distress Signals 13 | . . . . . 1 . 6 4 . . . . 2 Communications Jammed 3 | . . . . . . . . . . . . . 3 Distress Signals 3 | . . . . . . . . . . . . . 3 Times Spotted 267 | . 8 7 . . 7 35 30 39 2 32 9 15 83 Peak Tracking Total 9 | . 4 3 . . 2 6 5 9 2 6 4 5 8 Tactical Retreats 18 | . 1 . . . . 1 . 1 . 2 1 1 11 Traps | -11 -10 -10 -10 -9 -8 -8 -8 -8 -7 -7 -7 -6 -5 ------- Run | Jun Mat Min Exi Min Mat Gar Mat Sto Fac Gar Fac Fac Fac Traps Triggered 13 | . . . . . . 4 . 1 . 3 1 1 3 Indirectly . | . . . . . . . . . . . . . . Trap Hack Attempts . | . . . . . . . . . . . . . . Triggered . | . . . . . . . . . . . . . . Disarmed . | . . . . . . . . . . . . . . Reprogrammed . | . . . . . . . . . . . . . . Reused . | . . . . . . . . . . . . . . Traps Extracted . | . . . . . . . . . . . . . . Installed . | . . . . . . . . . . . . . . Triggered . | . . . . . . . . . . . . . . Machines | -11 -10 -10 -10 -9 -8 -8 -8 -8 -7 -7 -7 -6 -5 ---------- Run | Jun Mat Min Exi Min Mat Gar Mat Sto Fac Gar Fac Fac Fac Machines Disabled 29 | . . . . . . 7 3 5 . 8 3 1 2 Max in Single Turn 2 | . . . . . . 2 1 1 . 1 1 1 1 Garrison Access 3 | . . . . . . . 1 . . . 1 . 1 Garrison Relay 9 | . . . . . . 4 . . . 5 . . . Phase Generator 1 | . . . . . . 1 . . . . . . . Machines Repaired . | . . . . . . . . . . . . . . Machines Sabotaged . | . . . . . . . . . . . . . . Overloaded Fab Kills . | . . . . . . . . . . . . . . Hacking | -11 -10 -10 -10 -9 -8 -8 -8 -8 -7 -7 -7 -6 -5 --------- Run | Jun Mat Min Exi Min Mat Gar Mat Sto Fac Gar Fac Fac Fac Machines Accessed 41 | . 4 . . . 3 4 5 8 2 3 6 2 4 Terminals 36 | . 4 . . . 2 4 4 8 1 3 5 2 3 Fabricators . | . . . . . . . . . . . . . . Repair Stations . | . . . . . . . . . . . . . . Recycling Units . | . . . . . . . . . . . . . . Scanalyzers . | . . . . . . . . . . . . . . Garrison Access 5 | . . . . . 1 . 1 . 1 . 1 . 1 Total Hacks 83 | . 8 . . . 7 7 18 17 2 5 7 4 8 Successful 31 | . 4 . . . 3 2 9 3 1 2 2 . 5 Failed 52 | . 4 . . . 4 5 9 14 1 3 5 4 3 Catastrophic 15 | . . . . . . . 3 5 . . 4 2 1 Database Lockouts . | . . . . . . . . . . . . . . Manual 45 | . 2 . 1 . 5 . 9 13 1 . 5 4 5 Terminals 78 | . 8 . . . 6 7 17 17 1 5 6 4 7 Fabricators . | . . . . . . . . . . . . . . Repair Stations . | . . . . . . . . . . . . . . Recycling Units . | . . . . . . . . . . . . . . Scanalyzers . | . . . . . . . . . . . . . . Garrison Access 5 | . . . . . 1 . 1 . 1 . 1 . 1 Terminal Hacks 22 | . 3 . . . 2 2 6 3 . 2 1 . 3 Robot Analysis 2 | . . . . . 1 . . . . . . . 1 Prototype ID Bank 1 | . . . . . . . 1 . . . . . . Open Door 5 | . . . . . . 1 . 3 . 1 . . . Branch Access Points 2 | . 1 . . . . . 1 . . . . . . Emergency Access Points 2 | . . . . . . 1 . . . 1 . . . Alert Level 1 | . 1 . . . . . . . . . . . . Unreport Threat 4 | . . . . . . . 3 . . . 1 . . Hauler Manifests 1 | . . . . . . . 1 . . . . . . Zone Layout 4 | . 1 . . . 1 . . . . . . . 2 Fabricator Hacks . | . . . . . . . . . . . . . . Repair Station Hacks . | . . . . . . . . . . . . . . Recycling Unit Hacks . | . . . . . . . . . . . . . . Scanalyzer . | . . . . . . . . . . . . . . Garrison Access Hacks 5 | . . . . . 1 . 1 . 1 . 1 . 1 Unlock Access 2 | . . . . . 1 . . . 1 . . . . Seal Access 3 | . . . . . . . 1 . . . 1 . 1 Unauthorized Hacks 4 | . 1 . . . . . 2 . . . . . 1 Terminals 4 | . 1 . . . . . 2 . . . . . 1 Assimilate 1 | . . . . . . . . . . . . . 1 Botnet 3 | . 1 . . . . . 2 . . . . . . Fabricators . | . . . . . . . . . . . . . . Repair Stations . | . . . . . . . . . . . . . . Recycling Units . | . . . . . . . . . . . . . . Scanalyzers . | . . . . . . . . . . . . . . Garrison Access . | . . . . . . . . . . . . . . Data Cores Recovered 2 | . . . . . 2 . . . . . . . . Used 1 | . . . . . 1 . . . . . . . . Hacking Detections 33 | . 3 . . . 2 2 4 8 1 3 5 2 3 Full Trace Events 8 | . . . . . . 2 . 4 . 1 1 . . Feedback Events . | . . . . . . . . . . . . . . Feedback Blocked . | . . . . . . . . . . . . . . Robot Schematics Acquired . | . . . . . . . . . . . . . . Robots Built . | . . . . . . . . . . . . . . Authchips . | . . . . . . . . . . . . . . Time . | . . . . . . . . . . . . . . Total Robot Build Rating . | . . . . . . . . . . . . . . Part Schematics Acquired . | . . . . . . . . . . . . . . Parts Built . | . . . . . . . . . . . . . . Authchips . | . . . . . . . . . . . . . . Time . | . . . . . . . . . . . . . . Total Part Build Rating . | . . . . . . . . . . . . . . Parts Repaired . | . . . . . . . . . . . . . . Time . | . . . . . . . . . . . . . . Parts Recycled . | . . . . . . . . . . . . . . Recycled Matter . | . . . . . . . . . . . . . . Retrieved Matter . | . . . . . . . . . . . . . . Retrieved Components . | . . . . . . . . . . . . . . Parts Scanalyzed . | . . . . . . . . . . . . . . Part Schematics Acquired . | . . . . . . . . . . . . . . Parts Damaged . | . . . . . . . . . . . . . . Bothacking | -11 -10 -10 -10 -9 -8 -8 -8 -8 -7 -7 -7 -6 -5 ------------ Run | Jun Mat Min Exi Min Mat Gar Mat Sto Fac Gar Fac Fac Fac Used RIF Installer 3 | . . . . . . 2 . . . 1 . . . Threat Obfuscator 2 | . . . . . . 1 . . . 1 . . . Robots Hacked 25 | . . . . . . . 4 2 . 6 1 . 12 Non-combat 8 | . . . . . . . . 2 . . 1 . 5 Combat 17 | . . . . . . . 4 . . 6 . . 7 Robot Hacks Applied 31 | . . . . . . . 6 2 . 6 1 . 16 parse_system 3 | . . . . . . . 1 . . . . . 2 no_distress 5 | . . . . . . . . . . . . . 5 ignore_parts 1 | . . . . . . . . . . . . . 1 scatter_targeting 1 | . . . . . . . 1 . . . . . . link_complan 1 | . . . . . . . 1 . . . . . . amplify_resonance 1 | . . . . . . . . . . . . . 1 disable_weapons 1 | . . . . . . . . . . . . . 1 reboot_system 1 | . . . . . . . . . . . . . 1 overwrite_iff 8 | . . . . . . . 2 . . 1 . . 5 formatsys_low 3 | . . . . . . . . 2 . . 1 . . formatsys_high 6 | . . . . . . . 1 . . 5 . . . Relay Couplers Released 37 | . . . . . . 17 . . . 20 . . . Machine Destruction 37 | . . . . . . 17 . . . 20 . . . Attached 12 | . . . . . . . 2 1 . 3 1 . 5 Fabnet Peak Effective % . | . . . . . . . . . . . . . . Robots Rewired 14 | . . . . . . 6 . . . 8 . . . Allies Hacked . | . . . . . . . . . . . . . . Hacks Repelled . | . . . . . . . . . . . . . . Allies | -11 -10 -10 -10 -9 -8 -8 -8 -8 -7 -7 -7 -6 -5 -------- Run | Jun Mat Min Exi Min Mat Gar Mat Sto Fac Gar Fac Fac Fac Total Allies 38 | . . . . . . 8 3 4 . 16 1 . 6 Largest Group 8 | . . . . . . 3 2 4 . 8 6 . 2 Highest-Rated Group 200 | . . . . . . 78 31 86 . 200 180 . 85 Highest-Rated Ally 85 | . . . . . . 39 29 31 . 40 40 . 85 Total Orders 2 | . . . . . . . . 1 . . 1 . . AID 2 | . . . . . . . . 1 . . 1 . . Ally Attacks 231 | . . . . . . 75 23 10 . 99 11 . 13 Total Damage 3714 | . . . . . . 867 332 211 . 1773 258 . 273 Kills 47 | . . . . . . 13 5 2 . 18 5 . 4 Allies Corrupted . | . . . . . . . . . . . . . . Allies Melted . | . . . . . . . . . . . . . . Intel | -11 -10 -10 -10 -9 -8 -8 -8 -8 -7 -7 -7 -6 -5 ------- Run | Jun Mat Min Exi Min Mat Gar Mat Sto Fac Gar Fac Fac Fac Robot Analysis Total 2 | . . . . . 1 . . . . . . . 1 Derelict Logs Recovered 2 | . . 1 . 1 . . . . . . . . . Drone Launches . | . . . . . . . . . . . . . . Drone Recoveries . | . . . . . . . . . . . . . . Exploration | -11 -10 -10 -10 -9 -8 -8 -8 -8 -7 -7 -7 -6 -5 ------------- Run | Jun Mat Min Exi Min Mat Gar Mat Sto Fac Gar Fac Fac Fac Turns Passed 20072 | 68 663 1665 424 212 286 2955 1118 4007 611 2083 1742 1230 3008 Spaces Moved 8715 | 38 407 823 223 111 174 1454 450 1036 400 885 719 608 1387 Core 10 | 10 . . . . . . . . . . . . . Treads 773 | . . . . . . 548 211 . . . . . 14 Legs 7728 | 28 407 823 223 111 174 906 239 1036 400 885 719 608 1169 Wheels 204 | . . . . . . . . . . . . . 204 Hover . | . . . . . . . . . . . . . . Flight . | . . . . . . . . . . . . . . Fastest Speed 50 | 50 120 190 190 190 120 120 160 190 120 121 123 122 115 Average Speed 167 | 138 142 190 190 190 120 153 176 190 120 187 187 159 149 Slowest Speed 340 | 250 190 190 190 190 120 240 190 340 121 192 194 195 260 Overloaded Moves . | . . . . . . . . . . . . . . Propulsion Burnouts . | . . . . . . . . . . . . . . Robots Hopped . | . . . . . . . . . . . . . . Cave-ins Triggered 1 | . . . . . . . . . . . . . 1 Exploration Rate (%) 47 | 4 81 100 43 32 13 96 43 86 12 88 24 17 31 Regions Visited 13 Branch Regions 4 Pre-discovered Areas 1 | . . 1 . . . . . . . . . . . Known Exits Taken 6 | . 1 . . . 1 . 1 . 1 . 1 1 . Unknown Exits Taken 5 | 1 . 1 1 1 . . . 1 . . . . . Scrap Searched 2 | . . 1 . 1 . . . . . . . . . Spaces Dug 57 | . . . . . . . 1 21 6 2 4 2 21 Terrain Destroyed 436 | . . 24 . . . 102 35 57 6 38 10 12 152 Melee 55 | . . . . . . . 1 21 6 . 4 2 21 Projectile 109 | . . . . . . 4 24 36 . 1 6 10 28 AOE 272 | . . 24 . . . 98 10 . . 37 . . 103 Terrain Rammed . | . . . . . . . . . . . . . . Walls Destroyed . | . . . . . . . . . . . . . . Machines Disabled . | . . . . . . . . . . . . . . Actions | -11 -10 -10 -10 -9 -8 -8 -8 -8 -7 -7 -7 -6 -5 --------- Run | Jun Mat Min Exi Min Mat Gar Mat Sto Fac Gar Fac Fac Fac Total 13064 | 49 457 889 224 113 241 1994 665 2875 518 1163 1063 801 2012 Wait 2943 | 2 12 23 1 . 48 287 71 1660 78 48 274 126 313 Move 8704 | 37 406 822 222 110 174 1453 449 1035 400 884 718 607 1387 Hop . | . . . . . . . . . . . . . . Pick Up 171 | 3 8 3 1 2 4 26 26 14 7 28 9 9 31 Fast Attach 61 | 6 2 . . . . 7 . 8 2 3 4 4 25 Attach 57 | . . 2 . . 4 3 4 3 2 5 2 8 24 Detach 12 | . . 1 . . . 4 1 1 . . 1 . 4 Swap 188 | 1 5 5 . . 3 24 22 23 6 33 16 8 42 Drop 143 | . 6 2 . 1 3 33 22 17 15 16 9 4 15 Fire 559 | . 18 23 . . 5 101 67 85 . 59 25 31 145 Melee 108 | . . . . . . . 1 26 8 43 4 2 24 Ram 1 | . . . . . . . . . . . . . 1 Kick 13 | . . 7 . . . . 2 1 . . . 2 1 Crush . | . . . . . . . . . . . . . . Escape Stasis 20 | . . . . . . 10 . . . 10 . . . Rewire 84 | . . 1 . . . 46 . 2 . 34 1 . . Trap . | . . . . . . . . . . . . . . Miscellaneous . | . . . . . . . . . . . . . . Route ------- -11/Junkyard -10/Materials (discovered 3 exits: [*Mat x2] / *Min) -10/Mines (discovered 3 exits: [*Mat x2] / *Exi) -10/Exiles -9/Mines -8/Materials -8/Garrison (discovered 3 exits: *Mat x3) -8/Materials -8/Storage -7/Factory (discovered 3 exits: *Fac x2 / Gar) -7/Garrison (discovered 3 exits: *Fac x3) -7/Factory (discovered 2 exits: *Fac / [*Low]) -6/Factory -5/Factory (discovered 2 exits: [*Fac] / *Upp) History --------- Turn | Location | Event 28 | -11/Junkyard | Discovered new exit (range 15) 69 | -11/Junkyard | Entered Materials 174 | -10/Materials | Discovered new exit (range 9) 262 | -10/Materials | Identified exit to Mines 311 | -10/Materials | Build established: Mutant 338 | -10/Materials | Discovered new exit (range 4) 526 | -10/Materials | Discovered new exit (range 3) 732 | -10/Materials | Entered Mines 897 | -10/Mines | Learned location of Storage (-8) 1348 | -10/Mines | Discovered new exit (range 7) 1509 | -10/Mines | Discovered new exit (range 10) 2389 | -10/Mines | Deemed a non-threat by the Exiles lab entrance 2389 | -10/Mines | Discovered new exit (range 5) 2397 | -10/Mines | Entered Exiles 2443 | -10/Exiles | Met 8R-AWN 2472 | -10/Exiles | Met EX-HEX 2544 | -10/Exiles | Met EX-BIN 2567 | -10/Exiles | Aligned with FarCom system 2568 | -10/Exiles | Given EX-Vault access code 2618 | -10/Exiles | Opened EX-Vault 2632 | -10/Exiles | Found Prototype Ballistic Gun 2675 | -10/Exiles | Warned to stay clear of 0b10 Research branches 2798 | -10/Exiles | Discovered new exit (range 14) 2821 | -10/Exiles | Left Exiles lab with AWS/Gauss 2821 | -10/Exiles | Entered Mines 2846 | -9/Mines | Learned Materials trap positions 2943 | -9/Mines | Found a damaged Exp. Sensor Array with a note attached 3003 | -9/Mines | Discovered new exit (range 15) 3033 | -9/Mines | Entered Materials 3033 | -8/Materials | Evolved 4 slots: Propulsion x2, Utility x2 3034 | -8/Materials | Loaded intel: 22 trap records 3319 | -8/Materials | Identified exit to Garrison 3319 | -8/Materials | Entered Garrison 3322 | -8/Garrison | Triggered checkpoint 3335 | -8/Garrison | Triggered checkpoint 3375 | -8/Garrison | Garrison Relay disabled 3657 | -8/Garrison | Build established: Scavenger-Mutant 3778 | -8/Garrison | Triggered checkpoint 3879 | -8/Garrison | Garrison Relay disabled 4343 | -8/Garrison | Triggered checkpoint 4380 | -8/Garrison | Triggered checkpoint 4466 | -8/Garrison | Discovered new exit (range 11) 4539 | -8/Garrison | Triggered checkpoint 4741 | -8/Garrison | Discovered new exit (range 10) 4769 | -8/Garrison | Triggered checkpoint 4792 | -8/Garrison | Garrison Relay disabled 4864 | -8/Garrison | Installed Relay Interface Framework 4990 | -8/Garrison | Rescued a captive Derelict 4991 | -8/Garrison | Rescued a captive Derelict 5165 | -8/Garrison | Build established: Bothacker-Mutant 5661 | -8/Garrison | Triggered checkpoint 5747 | -8/Garrison | Discovered new exit (range 10) 5803 | -8/Garrison | Phase Generator disabled 5914 | -8/Garrison | Expanded RIF knowledge: Threat Obfuscation 5934 | -8/Garrison | Triggered checkpoint 5956 | -8/Garrison | Garrison Relay disabled 6274 | -8/Garrison | Entered Materials 6274 | -8/Materials | Accompanied by 1 ally 7074 | -8/Materials | First assault squad dispatched 7227 | -8/Materials | Discovered new exit (range 12) 7340 | -8/Materials | Identified exit to Storage 7392 | -8/Materials | Entered Storage 9994 | -8/Storage | Discovered new exit (range 15) 10137 | -8/Storage | Met a pair of Derelict thieves 10224 | -8/Storage | Core integrity fell below 50% 10510 | -8/Storage | Build established: Mutant 11399 | -8/Storage | Entered Factory 11399 | -7/Factory | Evolved 2 slots: Propulsion x2 11520 | -7/Factory | Discovered new exit (range 10) 11856 | -7/Factory | Discovered new exit (range 4) 12010 | -7/Factory | Identified exit to Garrison 12010 | -7/Factory | Entered Garrison 12034 | -7/Garrison | Triggered checkpoint 12061 | -7/Garrison | Garrison Relay disabled 12238 | -7/Garrison | Triggered checkpoint 12377 | -7/Garrison | Build established: Bothacker-Mutant 12397 | -7/Garrison | System corruption reached 10% 12551 | -7/Garrison | Rescued a captive Derelict 12551 | -7/Garrison | Rescued a captive Derelict 12600 | -7/Garrison | Discovered new exit (range 10) 12642 | -7/Garrison | Triggered checkpoint 12702 | -7/Garrison | Garrison Relay disabled 12976 | -7/Garrison | Triggered checkpoint 12991 | -7/Garrison | Triggered checkpoint 13015 | -7/Garrison | Triggered checkpoint 13134 | -7/Garrison | Triggered checkpoint 13166 | -7/Garrison | Garrison Relay disabled 13232 | -7/Garrison | Discovered new exit (range 15) 13745 | -7/Garrison | Garrison Relay disabled 13915 | -7/Garrison | Expanded RIF knowledge: Threat Obfuscation 13950 | -7/Garrison | Triggered checkpoint 13959 | -7/Garrison | Discovered new exit (range 6) 14028 | -7/Garrison | Garrison Relay disabled 14093 | -7/Garrison | Entered Factory 14093 | -7/Factory | Accompanied by 6 allies 15358 | -7/Factory | Discovered new exit (range 16) 15502 | -7/Factory | Discovered new exit (range 16) 15802 | -7/Factory | Identified exit to Factory 15835 | -7/Factory | Entered another Factory area 15835 | -6/Factory | Evolved 2 slots: Power x1, Propulsion x1 16724 | -6/Factory | Lost 4 parts (1p1n1u1w) 16995 | -6/Factory | Discovered new exit (range 5) 17032 | -6/Factory | Identified exit to Factory 17065 | -6/Factory | Entered another Factory area 17065 | -5/Factory | Evolved 2 slots: Propulsion x1, Utility x1 17447 | -5/Factory | Discovered new exit (range 7) 17642 | -5/Factory | Identified exit to Upper Caves 18062 | -5/Factory | Lost 4 parts (4n) 18260 | -5/Factory | Lost 7 parts (2p3n1u1w) 18396 | -5/Factory | Assembled infested ambush trap array 18885 | -5/Factory | Spotted B-75 Beast 19000 | -5/Factory | Lost 6 parts (2p4n) 19071 | -5/Factory | Core integrity fell below 50% 19109 | -5/Factory | Garrison activated, responded to threat 19677 | -5/Factory | Lost 5 parts (2p1n1u1w) 19910 | -5/Factory | Core integrity fell below 20% 19930 | -5/Factory | Build established: Scavenger-Mutant 19940 | -5/Factory | Garrison activated, responded to threat 19986 | -5/Factory | Lost 7 parts (1p4n1u1w) 20003 | -5/Factory | Discovered new exit (range 12) 20074 | -5/Factory | Crushed by falling debris 20074 | -5/Factory | Smashed by cave-in Last Messages --------------- 20053_ Slug penetrates Earth. 20056_ Slug penetrates H-71 Marshal. 20057_ Neutrino Core destroyed. 20057_ Knocked back. 20058_ Acquired 17 matter. 20062_ Penetrated by Slug. 20062_ Lyr. Medium Armor Plating destroyed. 20063_ U-05 Engineer lays Concrete. 20066_ The unstable cave ceiling collapses. 20067_ U-05 Engineer lays Concrete. 20067_ H-71 Marshal IFF system glitched. 20067_ U-05 Engineer knocked back. 20068_ System corrupted: Matter fused (-5). 20068_ U-05 Engineer lays Concrete. 20070_ H-71 Marshal destroyed. 20070_ U-05 Engineer lays Concrete. 20074_ The unstable cave ceiling collapses. 20074_ Crushed by falling debris. 20074_ Adv. Heat Sink destroyed. 20074_ System corrupted by crushing effect (+1). Map ----- +----------------------------------------------------+ | ????????????????????????????????? | | ????????????????????????????????? | | ????????????????????????????????? | | ????????????????????????????????? | | ????????????????????????????????? | | ????????????????????????????????? | | ????????????????????????????????? | | ????????????????????????????????? | | ????????????????????????????????? | | ????????????????????????????????? | | ????????????????????????????????? | | ????????????????????????????????? | | ????????????????????????????????? | | ????????????????????????????????? | | ????????????????????????????????? | | ????????????????????????????????? | | ????? #????????????????????????? | | ???? #????????????????????????? | | ???? #????????????????????????? | | ? +????????????????????????? | | #????????????????????????? | | """ #????????????????????????? | | """ #??????????????????##????? | | """ +????????????????##%#????? | | #????????????#????# #????? | | " " #??? ### ###@;#????? | | "G" #??? #????? | | " #??? =!# # * !! #????? | | #### | # %% [ !! #????? | | [! %= **[ !! #????? | | =%%## [## = ;????? | | # #????? | | [[%+%! # ;????? | | ######|#== ! ;????? | | #????# #%* ???? | | #????# ####### # ???? | | ######/######### % ???? | | # """"" # ug ??? | | + ""T"" # %< ??? | | # """""" # % ??? | | # """""" % %# #?? | | ### """""" #? ??? | | + """""" #??? ????? | | ### ]] #?? ????????? | | ??# ]] +? ????????? | | ??# ]] #? #??????? | | ###/########### ####? ???????? | | *#????????????? ???????? | | ] "#???????????? ???????? | | [ "#????######## ????????? | +----------------------------------------------------+ Best States ------------- Heat Dissipation 86 Energy Generation 32 Energy Capacity 520 Matter Stores 300 Matter Capacity 550 Sight Range 16 Terrain Scan Range 16 Terrain Scan Density 10 Jamming Range 14 Armor Coverage 825 Core Shielding 20 Evasion (%) 55 Targeting Accuracy 8 Recoil Reduction 4 Offensive Hacking 12 Relay Coupler Types 3 Relay Coupler Value 55 Item Schematics ----------------- None Robot Schematics ------------------ None Fabricated ------------ Nothing Alien Tech Used ----------------- None Achievements -------------- Party Time Challenges ------------ None Game ------ Seed ScatterLatentCarapace Manual? 0 Play Time 02:54:51 Cumulative 60.9 hours Start 2023.09.24 @ 14:38:11 End 2023.09.24 @ 20:23:46 Sessions 3 Manual Loads 0 Difficulty Rogue Special Mode None Game No. 37 Rogue 37 Adventurer 0 Explorer 0 Win Type - Total 0 Types 0/0/0/0/0/0/0/0/0 Lore% 22 Gallery% 42 Achievement% 35 Wizard Run 0 Options --------- ASCII 0 Keyboard 1 Movement Numpad Keybinds 0 Fullscreen 1 Font 24/Smallcaps Map View 76x50 Tactical HUD 1 Map Filters NONE Filters NONE Steam 1 RUN: 66795876-c8a1-48fa-97db-62198aaf7f84